[Event "FIDE WYCC Girls U18 2023"]
[Site "Montesilvano"]
[Date "2023.11.14"]
[Round "2.14"]
[White "Bhagyashree Patil"]
[Black "Skarbarchuk, Tetyana"]
[Result "1-0"]
[ECO "D46"]
[WhiteElo "1830"]
[BlackElo "2010"]
[Annotator "NA"]
[PlyCount "81"]
[EventDate "2023.11.13"]
[EventType "swiss"]
[EventCountry "ITA"]
[SourceTitle "playchess.com"]
[Source "ChessBase"]
[SourceQuality "1"]
[TimeControl "40/5400+30:1800+30"]

1. d4 {[%emt 0:00:12]} d5 {[%emt 0:00:06]} 2. Nf3 {[%emt 0:00:06]} Nf6 {[%emt 0:00:10]} 3. e3 {[%emt 0:00:04]} c6 {[%emt 0:02:20]} 4. c4 {[%emt 0:00:09]} e6 {[%emt 0:06:30]} 5. Nc3 {[%emt 0:00:18]} Bd6 {[%emt 0:00:20]} 6. Bd3 {[%emt 0:00:39]} Nbd7 {[%emt 0:01:46]} 7. O-O {[%emt 0:00:34]} O-O {[%emt 0:00:08]} 8. b3 {[%emt 0:04:40]} Re8 {[%emt 0:24:21]} 9. Qc2 {[%emt 0:03:46]} Qe7 {[%emt 0:12:02]} 10. e4 {[%emt 0:08:09]} dxc4 {[%emt 0:09:42]} 11. bxc4 {[%emt 0:05:09]} e5 {[%emt 0:00:09]} 12. d5 {[%emt 0:00:12]} Nc5 {[%emt 0:00:52]} 13. Be2 {[%emt 0:03:19]} Nh5 {[%emt 0:12:53]} 14. g3 {[%emt 0:01:41]} g6 {[%emt 0:00:28]} 15. Nd2 {[%emt 0:02:27]} Ng7 {[%emt 0:01:48]} 16. Nb3 {[%emt 0:02:41]} f5 {[%emt 0:05:19]} 17. Be3 {[%emt 0:04:08]} Nd7 {[%emt 0:06:42]} 18. f3 {[%emt 0:17:59]} f4 {[%emt 0:05:00]} 19. Bf2 {[%emt 0:00:07]} fxg3 {[%emt 0:00:07]} 20. hxg3 {[%emt 0:00:19]} Nh5 {[%emt 0:01:38]} 21. Qd2 {[%emt 0:01:05]} Rf8 {[%emt 0:04:42]} 22. Kg2 {[%emt 0:00:41]} Nc5 {[%emt 0:01:32]} 23. Rad1 {[%emt 0:00:40]} Nxb3 {[%emt 0:00:14]} 24. axb3 {[%emt 0:00:02]} c5 {[%emt 0:00:13]} 25. Nb5 {[%emt 0:00:41]} b6 {[%emt 0:01:19]} 26. Nxd6 {[%emt 0:01:53]} Qxd6 {[%emt 0:00:05]} 27. b4 {[%emt 0:00:08]} cxb4 {[%emt 0:01:18]} 28. c5 {[%emt 0:00:34]} bxc5 {[%emt 0:01:23]} 29. Rc1 {[%emt 0:00:02]} Qd7 {[%emt 0:00:37]} 30. Rh1 {[%emt 0:00:01]} a5 {[%emt 0:01:09]} 31. Qg5 {[%emt 0:02:41]} Qg7 {[%emt 0:00:32]} 32. Bxc5 {[%emt 0:01:02]} Re8 {[%emt 0:00:09]} 33. Bb5 {[%emt 0:02:31]} h6 {[%emt 0:00:20]} 34. Qe3 {[%emt 0:00:08]} Bd7 {[%emt 0:00:37]} 35. Bxd7 {[%emt 0:00:28]} Qxd7 {[%emt 0:00:04]} 36. Qxh6 {[%emt 0:00:20]} Qf7 {[%emt 0:00:36]} 37. f4 {[%emt 0:06:22]} exf4 {[%emt 0:01:11]} 38. Bd4 {[%emt 0:00:02]} Qh7 {[%emt 0:00:29]} 39. Rxh5 {[%emt 0:04:08]} gxh5 {[%emt 0:00:09]} 40. Qg5+ {[%emt 0:00:00]} Kf8 {[%emt 0:00:00]} 41. Qxf4+ {[%emt 0:00:10]} 1-0

[Event "FIDE WYCC Girls U18 2023"]
[Site "Montesilvano"]
[Date "2023.11.14"]
[Round "2.16"]
[White "Latifah, Darmaki"]
[Black "Nguyen Hong Nhung"]
[Result "0-1"]
[ECO "B23"]
[WhiteElo "1367"]
[BlackElo "1975"]
[Annotator "NA"]
[PlyCount "72"]
[EventDate "2023.11.13"]
[EventType "swiss"]
[EventCountry "ITA"]
[SourceTitle "playchess.com"]
[Source "ChessBase"]
[SourceQuality "1"]
[TimeControl "40/5400+30:1800+30"]

1. e4 {[%emt 0:00:07]} c5 {[%emt 0:00:08]} 2. Nc3 {[%emt 0:00:06]} e6 {[%emt 0:00:07]} 3. f4 {[%emt 0:00:07]} a6 {[%emt 0:00:08]} 4. Nf3 {[%emt 0:02:23]} d5 {[%emt 0:00:57]} 5. d3 {[%emt 0:01:36]} Nc6 {[%emt 0:00:24]} 6. Be2 {[%emt 0:06:16]} Nf6 {[%emt 0:01:30]} 7. O-O {[%emt 0:02:55]} Be7 {[%emt 0:01:13]} 8. Ne5 {[%emt 0:17:29]} Nd4 {[%emt 0:08:06]} 9. Bf3 {[%emt 0:01:59]} O-O {[%emt 0:01:12]} 10. g4 {[%emt 0:05:31]} Nxf3+ {[%emt 0:01:46]} 11. Qxf3 {[%emt 0:02:13]} d4 {[%emt 0:00:59]} 12. Ne2 {[%emt 0:00:51]} Nd7 {[%emt 0:01:52]} 13. Nxd7 {[%emt 0:10:29]} Bxd7 {[%emt 0:00:35]} 14. Bd2 {[%emt 0:12:29]} f5 {[%emt 0:19:37]} 15. g5 {[%emt 0:16:06]} Bc6 {[%emt 0:01:43]} 16. Qh3 {[%emt 0:00:11]} c4 {[%emt 0:03:18]} 17. Ng3 {[%emt 0:04:09]} Bc5 {[%emt 0:02:56]} 18. Rae1 {[%emt 0:06:49]} g6 {[%emt 0:12:36]} 19. Qh6 {[%emt 0:03:49]} Rf7 {[%emt 0:03:28]} 20. exf5 {[%emt 0:02:58]} exf5 {[%emt 0:00:47]} 21. Re5 {[%emt 0:01:09]} Bd6 {[%emt 0:01:09]} 22. Re6 {[%emt 0:00:36]} Bf8 {[%emt 0:01:45]} 23. Qh3 {[%emt 0:00:49]} Bb5 {[%emt 0:02:57]} 24. Rfe1 {[%emt 0:00:33]} Rc8 {[%emt 0:01:37]} 25. dxc4 {[%emt 0:00:43]} Bxc4 {[%emt 0:00:16]} 26. R6e5 {[%emt 0:00:32]} Bd6 {[%emt 0:02:20]} 27. Re8+ {[%emt 0:00:07]} Qxe8 {[%emt 0:00:06]} 28. Rxe8+ {[%emt 0:00:01]} Rxe8 {[%emt 0:00:06]} 29. b3 {[%emt 0:01:15]} Bb5 {[%emt 0:02:56]} 30. Qg2 {[%emt 0:00:33]} Bc6 {[%emt 0:00:47]} 31. Qf1 {[%emt 0:00:35]} Bc5 {[%emt 0:01:51]} 32. Qc4 {[%emt 0:00:17]} Ba7 {[%emt 0:01:13]} 33. Bb4 {[%emt 0:00:43]} d3+ {[%emt 0:00:24]} 34. Bc5 {[%emt 0:00:08]} d2 {[%emt 0:00:37]} 35. Qd3 {[%emt 0:00:51]} Bxc5+ {[%emt 0:00:13]} 36. Kf1 {[%emt 0:00:11]} Re1# {[%emt 0:00:07]} 0-1

[Event "FIDE WYCC Girls U18 2023"]
[Site "Montesilvano"]
[Date "2023.11.14"]
[Round "2.17"]
[White "Sovetbekova, Nurai"]
[Black "Kurmangaliyeva, Liya"]
[Result "1/2-1/2"]
[ECO "E09"]
[WhiteElo "1801"]
[BlackElo "2236"]
[Annotator "ChessBase"]
[PlyCount "130"]
[EventDate "2023.11.13"]
[EventType "swiss"]
[EventCountry "ITA"]
[SourceTitle "playchess.com"]
[Source "ChessBase"]
[SourceQuality "1"]
[TimeControl "40/5400+30:1800+30"]

1. d4 {[%emt 0:00:04]} d5 {[%emt 0:00:28]} 2. c4 {[%emt 0:00:07]} e6 {[%emt 0:00:10]} 3. Nf3 {[%emt 0:00:05]} c6 {[%emt 0:00:46]} 4. Nbd2 {[%emt 0:00:10]} Nf6 {[%emt 0:06:04]} 5. g3 {[%emt 0:01:23]} Be7 {[%emt 0:07:45]} 6. Bg2 {[%emt 0:00:35]} O-O {[%emt 0:00:21]} 7. O-O {[%emt 0:00:05]} Nbd7 {[%emt 0:02:26]} 8. Qc2 {[%emt 0:00:15]} b6 {[%emt 0:02:20]} 9. e4 {[%emt 0:00:28]} dxe4 {[%emt 0:02:59]} 10. Nxe4 {[%emt 0:00:06]} Bb7 {[%emt 0:01:08]} 11. Nxf6+ {[%emt 0:13:31]} Nxf6 {[%emt 0:13:19]} 12. Rd1 {[%emt 0:02:02]} Qc8 {[%emt 0:04:58]} 13. c5 {[%emt 0:02:20]} Rd8 {[%emt 0:11:51]} 14. Bd2 {[%emt 0:24:46]} h6 {[%emt 0:07:00]} 15. Rac1 {[%emt 0:05:46]} Nd5 {[%emt 0:01:44]} 16. Ne5 {[%emt 0:05:45]} Bf6 {[%emt 0:04:16]} 17. Be1 {[%emt 0:04:27]} Qc7 {[%emt 0:02:22]} 18. Nc4 {[%emt 0:09:11]} Ba6 {[%emt 0:02:13]} 19. Nd6 {[%emt 0:07:39]} Be7 {[%emt 0:11:18]} 20. Ne4 {[%emt 0:03:50]} Rac8 {[%emt 0:00:16]} 21. a3 {[%emt 0:02:02]} e5 {[%emt 0:01:14]} 22. b4 {[%emt 0:02:28]} exd4 {[%emt 0:01:25]} 23. Rxd4 {[%emt 0:00:51]} Qe5 {[%emt 0:01:44]} 24. Rcd1 {[%emt 0:00:59]} Re8 {[%emt 0:02:01]} 25. h4 {[%emt 0:07:02]} Bf8 {[%emt 0:05:05]} 26. Qa2 {[%emt 0:03:20]} Rcd8 {[%emt 0:05:20]} 27. Qc2 {[%emt 0:03:19]} bxc5 {[%emt 0:01:25]} 28. Nxc5 {[%emt 0:00:46]} Bc8 {[%emt 0:00:21]} 29. Bc3 {[%emt 0:00:58]} Qh5 {[%emt 0:00:46]} 30. R4d2 {[%emt 0:00:31]} Bg4 {[%emt 0:00:41]} 31. Rf1 {[%emt 0:00:26]} Bf5 {[%emt 0:01:28]} 32. Qc1 {[%emt 0:00:22]} Qg4 {[%emt 0:00:34]} 33. Bb2 {[%emt 0:00:29]} Be7 {[%emt 0:00:38]} 34. Rd4 {[%emt 0:00:37]} Qg6 {[%emt 0:00:09]} 35. Re1 {[%emt 0:00:32]} Bf6 {[%emt 0:00:23]} 36. Rdd1 {[%emt 0:00:28]} Bxh4 {[%emt 0:00:47]} 37. Rxe8+ {[%emt 0:00:33]} Rxe8 {[%emt 0:00:04]} 38. Re1 {[%emt 0:00:33]} Rf8 {[%emt 0:00:55]} 39. Ne4 {[%emt 0:00:28]} Be7 {[%emt 0:00:17]} 40. Nd2 {[%emt 0:00:00]} Bg5 {[%emt 0:00:00]} 41. Bd4 {[%emt 0:06:35]} Rd8 {[%emt 0:07:24]} 42. Qb2 {[%emt 0:02:20]} h5 {[%emt 0:08:51]} 43. Nf3 {[%emt 0:03:05]} h4 {[%emt 0:01:12]} 44. Nxg5 {[%emt 0:07:17]} Qxg5 {[%emt 0:00:19]} 45. gxh4 {[%emt 0:04:49]} Qg4 {[%emt 0:03:11]} 46. Be5 {[%emt 0:00:58]} Qxh4 {[%emt 0:09:06]} 47. Bg3 {[%emt 0:02:33]} Qg4 {[%emt 0:00:39]} 48. Qc1 {[%emt 0:00:59]} Qg6 {[%emt 0:00:53]} 49. Qc5 {[%emt 0:01:15]} a6 {[%emt 0:00:57]} 50. a4 {[%emt 0:01:47]} Bd3 {[%emt 0:01:28]} 51. Rc1 {[%emt 0:02:18]} Be4 {[%emt 0:01:17]} 52. Bxe4 {[%emt 0:02:10]} Qxe4 {[%emt 0:00:04]} 53. Qxc6 {[%emt 0:00:29]} Qxb4 {[%emt 0:00:52]} 54. Rd1 {[%emt 0:00:49]} Qb3 {[%emt 0:00:08]} 55. Rd4 {[%emt 0:00:27]} Qb1+ {[%emt 0:01:09]} 56. Kh2 {[%emt 0:00:21]} Qf5 {[%emt 0:00:50]} 57. Qxa6 {[%emt 0:00:39]} Qh7+ {[%emt 0:00:55]} 58. Kg2 {[%emt 0:00:20]} Re8 {[%emt 0:00:37]} 59. Qb5 {[%emt 0:00:47]} Nf6 {[%emt 0:00:09]} 60. Qb4 {[%emt 0:00:35]} Qc2 {[%emt 0:00:23]} 61. Qc4 {[%emt 0:00:30]} Qb2 {[%emt 0:00:31]} 62. Qb4 {[%emt 0:00:24]} Qa1 {[%emt 0:00:07]} 63. Qc4 {[%emt 0:00:40]} g6 {[%emt 0:01:16]} 64. Rh4 {[%emt 0:00:27]} Qd1 {[%emt 0:00:31]} 65. Qd4 {[%emt 0:00:23]} Qxd4 {[%emt 0:00:33]} 1/2-1/2

[Event "FIDE WYCC Girls U18 2023"]
[Site "Montesilvano"]
[Date "2023.11.14"]
[Round "2.18"]
[White "Hyatt, Jessica"]
[Black "Wikar, Martyna"]
[Result "0-1"]
[ECO "E90"]
[WhiteElo "1818"]
[BlackElo "2228"]
[Annotator "ChessBase"]
[PlyCount "94"]
[EventDate "2023.11.13"]
[EventType "swiss"]
[EventCountry "ITA"]
[SourceTitle "playchess.com"]
[Source "ChessBase"]
[SourceQuality "1"]
[TimeControl "40/5400+30:1800+30"]

1. d4 {[%emt 0:00:04]} Nf6 {[%emt 0:00:12]} 2. c4 {[%emt 0:00:08]} g6 {[%emt 0:03:08]} 3. Nc3 {[%emt 0:00:40]} Bg7 {[%emt 0:00:04]} 4. e4 {[%emt 0:00:21]} d6 {[%emt 0:00:05]} 5. Nf3 {[%emt 0:00:09]} O-O {[%emt 0:00:10]} 6. Be3 {[%emt 0:00:18]} Ng4 {[%emt 0:08:11]} 7. Bg5 {[%emt 0:01:57]} h6 {[%emt 0:01:29]} 8. Bh4 {[%emt 0:01:10]} c5 {[%emt 0:10:23]} 9. d5 {[%emt 0:03:32]} b5 {[%emt 0:05:55]} 10. cxb5 {[%emt 0:05:44]} a6 {[%emt 0:00:13]} 11. h3 {[%emt 0:00:41]} Ne5 {[%emt 0:02:43]} 12. Nxe5 {[%emt 0:02:00]} Bxe5 {[%emt 0:00:08]} 13. Qd2 {[%emt 0:00:33]} Qa5 {[%emt 0:07:44]} 14. f4 {[%emt 0:05:10]} Bd4 {[%emt 0:09:25]} 15. Ne2 {[%emt 0:23:24]} Qxd2+ {[%emt 0:02:49]} 16. Kxd2 {[%emt 0:00:05]} Bxb2 {[%emt 0:00:09]} 17. Rb1 {[%emt 0:00:05]} Bf6 {[%emt 0:01:59]} 18. Bxf6 {[%emt 0:00:30]} exf6 {[%emt 0:00:02]} 19. b6 {[%emt 0:00:35]} Bb7 {[%emt 0:02:51]} 20. Nc3 {[%emt 0:00:49]} Nd7 {[%emt 0:02:36]} 21. Bc4 {[%emt 0:04:56]} Kg7 {[%emt 0:02:21]} 22. Bb3 {[%emt 0:02:43]} Nxb6 {[%emt 0:05:22]} 23. Ba4 {[%emt 0:06:42]} Nc4+ {[%emt 0:11:05]} 24. Kd3 {[%emt 0:00:31]} Na5 {[%emt 0:00:14]} 25. Rb6 {[%emt 0:00:33]} Rfd8 {[%emt 0:05:33]} 26. Rhb1 {[%emt 0:00:47]} Ra7 {[%emt 0:00:06]} 27. g4 {[%emt 0:07:36]} Bc8 {[%emt 0:03:42]} 28. Rb8 {[%emt 0:02:09]} h5 {[%emt 0:05:47]} 29. g5 {[%emt 0:04:07]} fxg5 {[%emt 0:02:05]} 30. fxg5 {[%emt 0:00:14]} f5 {[%emt 0:00:32]} 31. gxf6+ {[%emt 0:00:34]} Kxf6 {[%emt 0:00:03]} 32. Bc6 {[%emt 0:08:31]} g5 {[%emt 0:02:52]} 33. Rf1+ {[%emt 0:11:57]} Kg6 {[%emt 0:02:23]} 34. h4 {[%emt 0:04:04]} Rf7 {[%emt 0:03:01]} 35. Rxf7 {[%emt 0:00:30]} Kxf7 {[%emt 0:00:01]} 36. hxg5 {[%emt 0:00:39]} Rg8 {[%emt 0:00:16]} 37. g6+ {[%emt 0:00:45]} Kg7 {[%emt 0:00:01]} 38. Ke3 {[%emt 0:01:38]} Rf8 {[%emt 0:00:30]} 39. Ba4 {[%emt 0:01:15]} Nc4+ {[%emt 0:00:18]} 40. Kd3 {[%emt 0:00:00]} Ne5+ {[%emt 0:00:00]} 41. Ke3 {[%emt 0:02:29]} h4 {[%emt 0:02:45]} 42. Bd1 {[%emt 0:02:33]} h3 {[%emt 0:03:19]} 43. Be2 {[%emt 0:00:47]} h2 {[%emt 0:01:41]} 44. Rb1 {[%emt 0:00:26]} Ng4+ {[%emt 0:01:25]} 45. Bxg4 {[%emt 0:02:41]} Bxg4 {[%emt 0:00:11]} 46. Rh1 {[%emt 0:00:15]} Rf3+ {[%emt 0:00:23]} 47. Kd2 {[%emt 0:00:08]} Rh3 {[%emt 0:00:41]} 0-1

[Event "FIDE WYCC Girls U18 2023"]
[Site "Montesilvano"]
[Date "2023.11.14"]
[Round "2.19"]
[White "Abrisqueta Zudaire, Leyre"]
[Black "Ajradinoska, Indzi"]
[Result "1-0"]
[ECO "A40"]
[WhiteElo "2137"]
[BlackElo "1594"]
[Annotator "NA"]
[PlyCount "117"]
[EventDate "2023.11.13"]
[EventType "swiss"]
[EventCountry "ITA"]
[SourceTitle "playchess.com"]
[Source "ChessBase"]
[SourceQuality "1"]
[TimeControl "40/5400+30:1800+30"]

1. d4 e6 {[%emt 0:00:07]} 2. c4 {[%emt 0:00:12]} Nf6 {[%emt 0:00:03]} 3. g3 {[%emt 0:00:20]} d5 {[%emt 0:00:08]} 4. Nf3 {[%emt 0:00:44]} Bb4+ {[%emt 0:02:07]} 5. Bd2 {[%emt 0:00:46]} Be7 {[%emt 0:00:06]} 6. Bg2 {[%emt 0:01:33]} c6 {[%emt 0:00:07]} 7. O-O {[%emt 0:02:28]} O-O {[%emt 0:00:08]} 8. Qc2 {[%emt 0:00:59]} Nbd7 {[%emt 0:02:04]} 9. Rd1 {[%emt 0:01:45]} b6 {[%emt 0:05:49]} 10. Bf4 {[%emt 0:02:28]} Ba6 {[%emt 0:01:49]} 11. b3 {[%emt 0:04:56]} Re8 {[%emt 0:01:44]} 12. Nc3 {[%emt 0:08:34]} Nh5 {[%emt 0:13:01]} 13. Bc1 {[%emt 0:04:01]} Qc7 {[%emt 0:01:21]} 14. e4 {[%emt 0:05:26]} dxe4 {[%emt 0:02:39]} 15. Nxe4 {[%emt 0:02:54]} Rad8 {[%emt 0:01:14]} 16. Bb2 {[%emt 0:22:47]} c5 {[%emt 0:06:53]} 17. d5 {[%emt 0:02:54]} exd5 {[%emt 0:00:59]} 18. Neg5 {[%emt 0:09:05]} Nf8 {[%emt 0:03:34]} 19. Qf5 {[%emt 0:06:04]} Nf6 {[%emt 0:06:54]} 20. Ne5 {[%emt 0:02:12]} Bc8 {[%emt 0:00:21]} 21. Qf4 {[%emt 0:03:49]} Bd6 {[%emt 0:02:14]} 22. Ngxf7 {[%emt 0:07:43]} Bxe5 {[%emt 0:02:31]} 23. Nxe5 {[%emt 0:00:19]} d4 {[%emt 0:01:33]} 24. Nd3 {[%emt 0:00:58]} Ne6 {[%emt 0:01:48]} 25. Qxc7 {[%emt 0:02:36]} Nxc7 {[%emt 0:00:01]} 26. b4 {[%emt 0:00:10]} Re2 {[%emt 0:02:32]} 27. bxc5 {[%emt 0:02:53]} bxc5 {[%emt 0:00:10]} 28. Ba3 {[%emt 0:00:18]} Ba6 {[%emt 0:01:54]} 29. Rdc1 {[%emt 0:02:23]} Ne6 {[%emt 0:01:34]} 30. Bf3 {[%emt 0:01:21]} Rd2 {[%emt 0:00:40]} 31. Nxc5 {[%emt 0:00:09]} Nxc5 {[%emt 0:00:43]} 32. Bxc5 {[%emt 0:00:02]} Rd3 {[%emt 0:00:17]} 33. Bg2 {[%emt 0:01:22]} Rc3 {[%emt 0:00:37]} 34. Rd1 {[%emt 0:01:23]} Rxc4 {[%emt 0:01:00]} 35. Bxa7 {[%emt 0:00:32]} d3 {[%emt 0:00:30]} 36. Rd2 {[%emt 0:00:42]} Rc2 {[%emt 0:02:14]} 37. Be3 {[%emt 0:00:56]} Rxd2 {[%emt 0:00:38]} 38. Bxd2 {[%emt 0:00:01]} Rc8 {[%emt 0:00:06]} 39. Rd1 {[%emt 0:01:32]} Rc2 {[%emt 0:00:05]} 40. a3 {[%emt 0:00:00]} Nd7 {[%emt 0:00:00]} 41. Bb4 {[%emt 0:01:24]} Nf6 {[%emt 0:04:43]} 42. Bf1 {[%emt 0:02:35]} Ng4 {[%emt 0:00:55]} 43. Bxd3 {[%emt 0:00:38]} Bxd3 {[%emt 0:05:42]} 44. Rxd3 {[%emt 0:00:39]} Ne5 {[%emt 0:00:02]} 45. Rc3 {[%emt 0:01:26]} Ra2 {[%emt 0:00:20]} 46. h3 {[%emt 0:04:27]} h5 {[%emt 0:00:29]} 47. Bd6 {[%emt 0:04:23]} Nf7 {[%emt 0:00:35]} 48. Bc5 {[%emt 0:00:04]} Ng5 {[%emt 0:00:43]} 49. Be3 {[%emt 0:03:26]} Ra1+ {[%emt 0:01:31]} 50. Kg2 {[%emt 0:00:22]} Nf7 {[%emt 0:00:42]} 51. Rc8+ {[%emt 0:01:36]} Kh7 {[%emt 0:00:07]} 52. Ra8 {[%emt 0:00:03]} Nd6 {[%emt 0:00:35]} 53. a4 {[%emt 0:01:07]} Nc4 {[%emt 0:00:35]} 54. Ra7 {[%emt 0:02:02]} Rd1 {[%emt 0:02:23]} 55. a5 {[%emt 0:00:33]} Rd3 {[%emt 0:00:18]} 56. Kf3 {[%emt 0:01:47]} Ra3 {[%emt 0:00:02]} 57. a6 {[%emt 0:00:21]} Nd6 {[%emt 0:00:13]} 58. Ra8 {[%emt 0:00:45]} Nb5 {[%emt 0:00:48]} 59. a7 {[%emt 0:01:06]} 1-0

[Event "FIDE WYCC Girls U18 2023"]
[Site "Montesilvano"]
[Date "2023.11.14"]
[Round "2.20"]
[White "Swara Lakshmi S Nair"]
[Black "Cornileau, Juliette"]
[Result "0-1"]
[ECO "B67"]
[WhiteElo "1659"]
[BlackElo "2089"]
[Annotator "NA"]
[PlyCount "66"]
[EventDate "2023.11.13"]
[EventType "swiss"]
[EventCountry "ITA"]
[SourceTitle "playchess.com"]
[Source "ChessBase"]
[SourceQuality "1"]
[TimeControl "40/5400+30:1800+30"]

1. e4 {[%emt 0:00:03]} c5 {[%emt 0:00:28]} 2. Nf3 {[%emt 0:00:11]} Nc6 {[%emt 0:00:04]} 3. d4 {[%emt 0:00:12]} cxd4 {[%emt 0:00:05]} 4. Nxd4 {[%emt 0:00:06]} Nf6 {[%emt 0:00:04]} 5. Nc3 {[%emt 0:00:08]} d6 {[%emt 0:00:04]} 6. Bg5 {[%emt 0:00:24]} e6 {[%emt 0:00:12]} 7. Qd2 {[%emt 0:01:26]} a6 {[%emt 0:00:04]} 8. O-O-O {[%emt 0:00:10]} Bd7 {[%emt 0:00:22]} 9. f3 {[%emt 0:00:26]} Nxd4 {[%emt 0:10:52]} 10. Qxd4 {[%emt 0:00:34]} Be7 {[%emt 0:00:08]} 11. h4 {[%emt 0:09:23]} h6 {[%emt 0:12:49]} 12. Be3 {[%emt 0:00:11]} h5 {[%emt 0:00:07]} 13. Kb1 {[%emt 0:08:46]} b5 {[%emt 0:03:00]} 14. Bg5 {[%emt 0:03:43]} Qc7 {[%emt 0:12:30]} 15. Bd3 {[%emt 0:19:30]} b4 {[%emt 0:14:10]} 16. Ne2 {[%emt 0:08:11]} e5 {[%emt 0:05:04]} 17. Qf2 {[%emt 0:02:23]} Be6 {[%emt 0:01:52]} 18. Rhe1 {[%emt 0:00:05]} O-O {[%emt 0:01:30]} 19. Nc1 {[%emt 0:09:40]} a5 {[%emt 0:05:08]} 20. Qg3 {[%emt 0:12:43]} Rfc8 {[%emt 0:04:41]} 21. f4 {[%emt 0:01:48]} Bg4 {[%emt 0:01:49]} 22. Rd2 {[%emt 0:01:48]} a4 {[%emt 0:00:30]} 23. fxe5 {[%emt 0:03:04]} dxe5 {[%emt 0:00:04]} 24. Bf1 {[%emt 0:08:32]} b3 {[%emt 0:02:08]} 25. cxb3 {[%emt 0:00:58]} Nxe4 {[%emt 0:01:52]} 26. Qe3 {[%emt 0:00:41]} Nxd2+ {[%emt 0:06:56]} 27. Qxd2 {[%emt 0:00:03]} Bxg5 {[%emt 0:00:29]} 28. hxg5 {[%emt 0:00:01]} Bf5+ {[%emt 0:00:36]} 29. Ka1 {[%emt 0:00:07]} axb3 {[%emt 0:00:50]} 30. Nxb3 {[%emt 0:00:19]} Rxa2+ {[%emt 0:03:23]} 31. Kxa2 {[%emt 0:00:03]} Ra8+ {[%emt 0:00:05]} 32. Na5 {[%emt 0:00:12]} Rxa5+ {[%emt 0:00:02]} 33. Kb3 {[%emt 0:00:53]} Be6+ {[%emt 0:00:05]} 0-1

[Event "FIDE WYCC Girls U18 2023"]
[Site "Montesilvano"]
[Date "2023.11.14"]
[Round "2.21"]
[White "Tsapaki, Asimenia"]
[Black "Hakobyan, Astghik"]
[Result "1/2-1/2"]
[ECO "B13"]
[WhiteElo "1702"]
[BlackElo "2073"]
[Annotator "NA"]
[PlyCount "135"]
[EventDate "2023.11.13"]
[EventType "swiss"]
[EventCountry "ITA"]
[SourceTitle "playchess.com"]
[Source "ChessBase"]
[SourceQuality "1"]
[TimeControl "40/5400+30:1800+30"]

1. e4 {[%emt 0:00:05]} c6 {[%emt 0:00:14]} 2. d4 {[%emt 0:00:05]} d5 {[%emt 0:00:03]} 3. exd5 {[%emt 0:00:07]} cxd5 {[%emt 0:00:03]} 4. Bd3 {[%emt 0:00:08]} Nf6 {[%emt 0:00:06]} 5. h3 {[%emt 0:00:14]} Nc6 {[%emt 0:00:16]} 6. c3 {[%emt 0:00:06]} e5 {[%emt 0:01:44]} 7. dxe5 {[%emt 0:00:07]} Nxe5 {[%emt 0:00:03]} 8. Nf3 {[%emt 0:00:06]} Nxd3+ {[%emt 0:01:39]} 9. Qxd3 {[%emt 0:00:06]} Bd6 {[%emt 0:14:40]} 10. O-O {[%emt 0:00:56]} O-O {[%emt 0:03:44]} 11. Bg5 {[%emt 0:09:54]} h6 {[%emt 0:00:38]} 12. Bxf6 {[%emt 0:01:43]} Qxf6 {[%emt 0:13:11]} 13. Nbd2 {[%emt 0:01:21]} Rd8 {[%emt 0:05:52]} 14. Nd4 {[%emt 0:00:43]} a6 {[%emt 0:01:41]} 15. N2f3 {[%emt 0:10:09]} g5 {[%emt 0:20:26]} 16. Ne2 Bf5 {[%emt 0:00:50]} 17. Qd4 {[%emt 0:01:51]} Qg6 {[%emt 0:06:00]} 18. Rad1 {[%emt 0:12:07]} Re8 {[%emt 0:02:01]} 19. Ng3 {[%emt 0:08:47]} Bc2 {[%emt 0:03:55]} 20. Rd2 Bf4 21. Rxc2 {[%emt 0:02:47]} Bxg3 {[%emt 0:00:44]} 22. Rd2 {[%emt 0:00:21]} Bf4 {[%emt 0:02:18]} 23. Rdd1 {[%emt 0:11:05]} Re2 {[%emt 0:06:55]} 24. Qb4 {[%emt 0:02:09]} b5 {[%emt 0:00:54]} 25. Rxd5 {[%emt 0:10:43]} Rae8 {[%emt 0:06:16]} 26. Rfd1 {[%emt 0:08:08]} Qc2 27. Rd8 Kh7 {[%emt 0:01:53]} 28. Qb3 {[%emt 0:03:16]} Qxb3 {[%emt 0:00:28]} 29. axb3 Rxd8 {[%emt 0:01:42]} 30. Rxd8 {[%emt 0:00:12]} Rxb2 {[%emt 0:03:20]} 31. g3 {[%emt 0:00:15]} Bc7 {[%emt 0:02:10]} 32. Rd7 {[%emt 0:00:47]} Bb6 {[%emt 0:00:06]} 33. Nd2 {[%emt 0:02:52]} Kg7 {[%emt 0:01:49]} 34. Kf1 {[%emt 0:08:30]} a5 {[%emt 0:01:10]} 35. Rd5 {[%emt 0:04:10]} a4 {[%emt 0:00:27]} 36. Rxb5 {[%emt 0:01:42]} a3 {[%emt 0:00:18]} 37. Rxb6 {[%emt 0:01:05]} a2 {[%emt 0:00:23]} 38. Ra6 {[%emt 0:00:08]} Rxd2 {[%emt 0:00:38]} 39. Kg2 {[%emt 0:01:17]} Kf8 {[%emt 0:00:33]} 40. b4 {[%emt 0:00:00]} Ke7 {[%emt 0:00:00]} 41. c4 {[%emt 0:01:09]} Rc2 {[%emt 0:05:45]} 42. b5 {[%emt 0:02:09]} f5 {[%emt 0:08:57]} 43. c5 {[%emt 0:11:15]} Rxc5 {[%emt 0:01:30]} 44. Rxa2 {[%emt 0:00:54]} Rxb5 45. Ra6 {[%emt 0:00:09]} h5 {[%emt 0:01:46]} 46. Rh6 {[%emt 0:00:07]} Kf7 {[%emt 0:02:29]} 47. Rxh5 {[%emt 0:00:09]} Kg6 {[%emt 0:00:03]} 48. Rh8 {[%emt 0:00:11]} Rb4 {[%emt 0:02:17]} 49. Ra8 {[%emt 0:00:49]} Kf6 {[%emt 0:02:02]} 50. Ra6+ {[%emt 0:01:34]} Kg7 {[%emt 0:00:04]} 51. Re6 {[%emt 0:01:36]} Kf7 {[%emt 0:00:57]} 52. Re3 {[%emt 0:00:22]} Kg6 {[%emt 0:01:30]} 53. Rf3 {[%emt 0:00:27]} Ra4 {[%emt 0:01:09]} 54. Rb3 {[%emt 0:03:44]} Kf6 {[%emt 0:01:04]} 55. Kf3 {[%emt 0:00:32]} Kf7 {[%emt 0:00:52]} 56. g4 {[%emt 0:00:38]} fxg4+ {[%emt 0:00:57]} 57. hxg4 {[%emt 0:00:08]} Kf6 {[%emt 0:00:52]} 58. Kg3 {[%emt 0:00:45]} Kg6 {[%emt 0:00:39]} 59. Rb6+ {[%emt 0:00:23]} Kg7 {[%emt 0:00:14]} 60. Rb5 {[%emt 0:00:07]} Ra3+ {[%emt 0:00:18]} 61. f3 {[%emt 0:00:26]} Kg6 {[%emt 0:00:10]} 62. Rf5 {[%emt 0:00:11]} Ra2 {[%emt 0:00:09]} 63. Re5 {[%emt 0:01:42]} Kf6 {[%emt 0:00:07]} 64. Re3 {[%emt 0:00:35]} Rb2 {[%emt 0:00:11]} 65. f4 {[%emt 0:00:28]} gxf4+ {[%emt 0:00:06]} 66. Kxf4 {[%emt 0:00:12]} Rb4+ {[%emt 0:00:16]} 67. Kg3 {[%emt 0:00:25]} Rb1 {[%emt 0:00:36]} 68. Ra3 {[%emt 0:00:55]} 1/2-1/2